bitfinex-derivatives/quotes_BNBF0:USTF0_20251225
["timestamp","ask_amount","ask_price","bid_price","bid_amount"]
[1766672606243,1.19576222,836.9,836.15,1.19400069]
[1766672606441,1.19576222,836.89,836.15,1.19400069]
[1766672606638,1.19580415,836.88,836.15,1.19400069]
[1766672606843,0.89666517,836.8,835.95,1.19400069]
[1766672607039,1.19580415,836.79,835.95,1.19400069]
[1766672607340,1.19580415,836.79,835.91,1.19400069]
[1766672607542,1.19580415,836.78,835.91,1.19400069]
[1766672607738,1.19580415,836.77,835.91,1.19400069]
[1766672607938,1.19580415,836.76,835.91,1.19400069]
[1766672608241,1.19580415,836.75,835.9,1.19400069]
[1766672608440,1.19580415,836.74,835.9,1.19400069]
[1766672608644,0.89666517,836.86,835.9,1.19400069]
[1766672608941,1.1960884,836.85,835.9,1.19400069]
[1766672609141,1.1960884,836.84,835.88,1.19400069]
[1766672609337,1.1960884,836.83,835.88,1.19400069]
[1766672609542,1.1960884,836.82,835.88,1.19400069]
[1766672609743,1.1960884,836.81,835.88,1.19400069]
[1766672610042,1.1960884,836.8,835.88,1.19400069]
[1766672610239,1.1960884,836.79,835.87,1.19400069]
[1766672610438,0.20797103,836.87,835.87,1.19400069]
[1766672610439,1.1960884,836.78,835.87,1.19400069]
[1766672610639,0.20797103,836.87,835.87,1.19400069]
[1766672610640,1.1960884,836.77,835.87,1.19400069]
[1766672610841,0.20797103,836.87,835.87,1.19400069]
[1766672611044,1.19608938,836.86,835.87,1.19400069]
[1766672611240,1.19608938,836.85,835.86,1.19400069]
[1766672611439,1.19608938,836.84,835.86,1.19400069]
[1766672611644,1.19608938,836.83,835.86,1.19400069]
[1766672611938,1.19608938,836.82,835.86,1.19400069]
[1766672612143,1.19608938,836.81,835.86,1.19400069]
[1766672612339,1.19608938,836.8,835.86,1.19400069]
[1766672612543,1.19608938,836.79,835.86,1.19400069]
[1766672612738,1.19608938,836.78,835.84,1.19400069]
[1766672612939,1.19608938,836.77,835.84,1.19400069]
[1766672613140,0.20797103,836.87,835.84,1.19400069]
[1766672613340,1.19611744,836.86,835.83,1.19400069]
[1766672613543,1.19611744,836.85,835.83,1.19400069]
[1766672613843,1.19611744,836.84,835.83,1.19400069]
[1766672614040,1.19611744,836.83,835.83,1.19400069]
[1766672614239,1.19611744,836.82,835.82,1.19400069]
[1766672614543,1.19611744,836.81,835.82,1.19400069]
[1766672614745,1.19611744,836.8,835.82,1.19400069]
[1766672615045,1.19611744,836.79,835.82,1.19400069]
[1766672615246,1.19611744,836.78,835.81,1.19400069]
[1766672615445,9.14964084,836.79,835.81,1.19400069]
[1766672615644,1.19611742,836.78,835.81,1.19400069]
[1766672615845,9.14964084,836.79,835.81,1.19400069]
[1766672616543,0.68195767,836.78,835.65,1.79182466]
[1766672616742,0.68195767,836.77,835.65,1.79182466]
[1766672616941,0.68195767,836.76,835.65,1.79182466]
[1766672617147,0.68195767,836.75,835.65,1.79182466]
[1766672617352,0.68195767,836.74,835.65,1.79182466]
[1766672617550,0.68195767,836.73,835.65,1.79182466]
[1766672617745,0.68195767,836.72,835.65,1.79182466]
[1766672618050,0.68195767,836.71,835.65,1.79182466]
[1766672618249,0.68195767,836.7,835.64,1.79182466]
[1766672618546,0.68195767,836.69,835.64,1.79182466]
[1766672618844,0.68195767,836.68,835.64,1.79182466]
[1766672619145,0.68195767,836.67,835.64,1.79182466]
[1766672619350,0.68195767,836.66,835.64,1.79182466]
[1766672619545,0.68195767,836.65,835.64,1.79182466]
[1766672619751,0.20797103,836.87,835.64,1.79182466]
[1766672619947,1.87781403,836.86,835.64,1.79182466]
[1766672620249,1.87781403,836.85,835.64,1.79182466]
[1766672620544,1.87781403,836.84,835.64,1.79182466]
[1766672620747,1.87781403,836.83,835.64,1.79182466]
[1766672620944,1.87781403,836.82,835.64,1.79182466]
[1766672621148,1.87781403,836.81,835.63,1.79182466]
[1766672621450,0.68169646,836.8,835.63,1.79182466]
[1766672621649,0.68169646,836.79,835.63,1.79182466]
[1766672621852,0.68169646,836.78,835.63,1.79182466]
[1766672622050,0.68169646,836.77,835.63,1.79182466]
[1766672622351,0.68169646,836.76,835.63,1.79182466]
[1766672622551,0.68169646,836.75,835.63,1.79182466]
[1766672622847,0.68169646,836.74,835.63,1.79182466]
[1766672623045,0.68169646,836.73,835.63,1.79182466]
[1766672623250,0.68169646,836.72,835.63,1.79182466]
[1766672623446,0.68169646,836.71,835.63,1.79182466]
[1766672623650,0.68169646,836.7,835.63,1.79182466]
[1766672623848,0.68169646,836.69,835.63,1.79182466]
[1766672624052,0.68169646,836.68,835.62,56.59748715]
[1766672624251,0.68169646,836.67,835.62,1.79182466]
[1766672624452,0.68169646,836.66,835.62,1.79182466]
[1766672624747,0.68169646,836.65,835.62,1.79182466]
[1766672624951,8.80414995,836.73,835.62,1.79182466]
[1766672625147,0.68144168,836.72,835.62,1.79182466]
[1766672625452,0.68144168,836.71,835.62,1.79182466]
[1766672625652,0.68144168,836.7,835.62,1.79182466]
[1766672625951,0.68144168,836.69,835.62,1.79182466]
[1766672626150,0.68144168,836.68,835.64,1.79182466]
[1766672626448,0.68144168,836.67,835.64,1.79182466]
[1766672626647,8.82964812,836.69,835.64,1.79182466]
[1766672626846,0.68137476,836.68,835.64,1.79182466]
[1766672627046,0.68137476,836.67,835.64,1.79182466]
[1766672627251,8.82964812,836.69,835.64,1.79182466]
[1766672627452,0.68136533,836.68,835.64,1.79182466]
[1766672627652,8.82964812,836.69,835.64,1.79182466]
[1766672627849,0.68136533,836.68,835.64,1.79182466]
[1766672628053,8.82964812,836.69,835.64,1.79182466]
[1766672628254,0.68136646,836.68,835.64,1.79182466]
[1766672628551,8.82964812,836.69,835.64,1.79182466]
[1766672628754,0.68136187,836.68,835.64,1.79182466]
[1766672629054,8.82964812,836.69,835.64,1.79182466]
[1766672629249,0.68136187,836.68,835.64,1.79182466]
[1766672629453,0.20797103,836.87,835.64,1.79182466]
[1766672629652,1.87746309,836.86,835.64,1.79182466]
[1766672629850,1.87746309,836.85,835.64,1.79182466]
[1766672630053,1.87746309,836.84,835.64,1.79182466]
[1766672630250,1.87746309,836.83,835.64,1.79182466]
[1766672630455,0.68136422,836.82,835.64,1.79182466]
[1766672630755,0.68136422,836.81,835.64,1.79182466]
[1766672630955,0.68136422,836.8,835.64,1.79182466]
[1766672631156,0.68136422,836.79,835.64,1.79182466]
[1766672631356,0.68136422,836.78,835.64,1.79182466]
[1766672631556,0.68136422,836.77,835.64,1.79182466]
[1766672631756,0.68136422,836.76,835.64,1.79182466]
[1766672631957,0.68136422,836.75,835.64,1.79182466]
[1766672632157,0.68136422,836.74,835.64,1.79182466]
[1766672632352,0.68136422,836.73,835.64,1.79182466]
[1766672632552,0.68136422,836.72,835.64,1.79182466]
[1766672632755,0.68136422,836.71,835.64,1.79182466]
[1766672633057,0.68136422,836.7,835.64,1.79182466]
[1766672633357,0.68136422,836.69,835.64,1.79182466]
[1766672636154,0.68136422,836.69,835.65,1.79182466]
[1766672636357,0.68136422,836.69,835.66,1.79182466]
[1766672636959,0.68136422,836.68,835.66,1.79182466]
[1766672637261,0.68160964,836.67,835.66,1.79182466]
[1766672637459,0.20797103,836.87,835.66,1.79182466]
[1766672637659,1.87765035,836.86,835.68,1.79182466]
[1766672637859,0.20797103,836.87,835.68,1.79182466]
[1766672637860,1.87765035,836.85,835.68,1.79182466]
[1766672638154,1.87765035,836.84,835.68,1.79182466]
[1766672638356,0.68159283,836.83,835.68,1.79182466]
[1766672638660,0.68159283,836.82,835.68,1.79182466]
[1766672638857,0.68159283,836.81,835.68,1.79182466]
[1766672639055,0.68159283,836.8,835.68,1.79182466]
[1766672639258,0.68159283,836.79,835.69,1.79182466]
[1766672639461,0.68159283,836.78,835.69,1.79182466]
[1766672639656,0.68159283,836.77,835.69,1.79182466]
[1766672639957,0.68159283,836.76,835.69,1.79182466]
[1766672640157,0.68159283,836.75,835.69,1.79182466]
[1766672640355,0.68159283,836.74,835.69,1.79182466]
[1766672640657,0.68159283,836.73,835.69,1.79182466]
[1766672640858,0.68159283,836.72,835.69,1.79182466]
[1766672641056,0.68159283,836.71,835.69,1.79182466]
[1766672641258,0.68159283,836.7,835.7,1.79182466]
[1766672641560,0.68159283,836.69,835.7,14.82575127]
[1766672643263,0.68159283,836.69,835.71,1.79182466]
[1766672643665,0.68159283,836.69,835.7,14.82575127]
[1766672643861,0.68159283,836.69,835.7,13.03392661]
[1766672644166,0.68159283,836.68,835.7,13.03392661]
[1766672644463,0.68159283,836.67,835.7,1.79182466]
[1766672644663,0.68159283,836.66,835.7,1.79182466]
[1766672644966,0.68159283,836.65,835.7,1.79182466]
[1766672645269,0.68159283,836.64,835.7,1.79182466]
[1766672645465,0.68159283,836.63,835.7,1.79182466]
[1766672645664,0.20797103,836.87,835.7,1.79182466]
[1766672645866,1.87855117,836.86,835.7,1.79182466]
[1766672646164,1.87855117,836.85,835.7,1.79182466]
[1766672646366,1.87855117,836.84,835.71,1.79182466]
[1766672646567,1.87855117,836.83,835.71,1.79182466]
[1766672646766,1.87855117,836.82,835.71,1.79182466]
[1766672646964,1.87855117,836.81,835.71,1.79182466]
[1766672647168,1.87855117,836.8,835.72,1.79182466]
[1766672647368,1.87855117,836.79,835.72,1.79182466]
[1766672647568,1.87855117,836.78,835.72,1.79182466]
[1766672647868,1.87855117,836.77,835.72,1.79182466]
[1766672648067,1.87855117,836.76,835.72,1.79182466]
[1766672648265,1.87855117,836.75,835.73,1.79182466]
[1766672648464,0.68246515,836.74,835.73,1.79182466]
[1766672648762,0.68246515,836.73,835.73,1.79182466]
[1766672648965,0.68246515,836.72,835.73,1.79182466]
[1766672649166,0.68246515,836.71,835.74,1.79182466]
[1766672649364,0.68246515,836.7,835.75,1.79182466]
[1766672649562,0.68246515,836.69,835.75,1.79182466]
[1766672649766,0.68246515,836.68,835.75,1.79182466]
[1766672649964,0.68246515,836.67,835.75,1.79182466]
[1766672650168,0.68246515,836.66,835.76,1.79182466]
[1766672650366,0.68246515,836.65,835.76,1.79182466]
[1766672650568,0.68246515,836.64,835.76,1.79182466]
[1766672650866,0.68246515,836.63,835.76,1.79182466]
[1766672651067,9.74424384,836.62,835.76,14.8462032]
[1766672651368,0.68246515,836.61,835.79,1.79182466]
[1766672651566,0.68246515,836.6,835.79,1.79182466]
[1766672651865,0.68246515,836.59,835.79,1.79182466]
[1766672652068,9.06177869,836.62,835.79,1.79182466]
[1766672652069,0.68246515,836.58,835.79,1.79182466]
[1766672652266,0.68246515,836.57,835.79,1.79182466]
[1766672652570,0.68246515,836.56,835.79,1.79182466]
[1766672652765,0.68246515,836.55,835.79,1.79182466]
[1766672652968,0.68246515,836.54,835.79,1.79182466]
[1766672653168,9.06177869,836.62,835.79,1.79182466]
[1766672653367,0.68446931,836.61,835.79,1.79182466]
[1766672653567,0.68446931,836.6,835.79,1.79182466]
[1766672653771,0.68446931,836.59,835.79,1.79182466]
[1766672654071,0.68446931,836.58,835.79,1.79182466]
[1766672654272,0.89666517,836.83,835.81,1.79182466]
[1766672654472,0.68434157,836.82,835.95,1.79182466]
[1766672654673,0.68434157,836.81,835.95,1.79182466]
[1766672654867,0.68434157,836.8,835.97,1.79182466]
[1766672655069,0.68434157,836.79,835.97,1.79182466]
[1766672655272,0.68434157,836.78,835.95,1.79182466]
[1766672655475,9.13787251,836.81,836.11,1.19317604]
[1766672656474,9.13787251,836.81,836.1,1.19317604]
[1766672657275,9.13787251,836.81,836.09,1.19317604]
[1766672658071,0.20797103,836.87,836.09,1.19317604]
[1766672658275,0.20797103,836.87,836.08,1.19317604]
[1766672659273,0.20797103,836.87,836.07,1.19317604]
[1766672661277,0.20797103,836.87,836.06,1.19317604]
[1766672663379,0.20797103,836.87,836.05,1.19317604]
[1766672666184,0.20797103,836.87,836.04,1.19317604]
[1766672672282,0.20797103,836.87,835.96,1.19317604]
[1766672675189,0.20797103,836.87,835.95,1.19317604]
[1766672675389,0.20797103,836.87,835.96,1.19317604]
[1766672676583,0.20797103,836.87,835.97,1.19317604]
[1766672680290,0.20797103,836.87,835.98,1.19317604]
[1766672686196,0.20797103,836.87,836.03,1.19317604]
[1766672686695,0.20797103,836.87,836.05,1.19317604]
[1766672688593,0.20797103,836.87,836.06,1.19317604]
[1766672693302,0.20797103,836.87,836.07,1.19317604]
[1766672695304,0.20797103,836.87,836.08,1.19317604]
[1766672697304,0.20797103,836.87,836.09,1.19317604]
[1766672698406,0.20797103,836.87,836.09,14.42820415]
[1766672699307,0.20797103,836.87,836.1,1.19317604]
[1766672705511,0.89666517,837.02,836.1,1.19317604]
[1766672705708,1.19584611,837.01,836.1,1.19317604]
[1766672705912,0.20795674,836.98,836.1,1.19317604]
[1766672706206,1.19584611,836.97,836.1,1.19317604]
[1766672706412,1.19584611,836.96,836.1,1.19317604]
[1766672706707,1.19584611,836.95,836.1,1.19317604]
[1766672706911,1.19584611,836.94,836.1,1.19317604]
[1766672707208,1.19584611,836.93,836.12,1.19317604]
[1766672707406,1.19584611,836.92,836.12,1.19317604]
[1766672707611,1.19584611,836.91,836.12,1.19317604]
[1766672707812,0.20795674,836.98,836.12,14.25043074]
[1766672708010,1.19582547,836.97,836.12,14.25043074]
[1766672708311,1.19582547,836.96,836.12,14.25043074]
[1766672708508,1.19582547,836.95,836.12,14.25043074]
[1766672708712,1.19582547,836.94,836.12,14.25043074]
[1766672708909,1.19582547,836.93,836.12,14.25043074]
[1766672709114,1.19582547,836.92,836.12,14.25043074]
[1766672709409,1.19582547,836.91,836.12,14.25043074]
[1766672709615,0.20795674,836.98,836.12,14.25043074]
[1766672709815,1.19582536,836.97,836.12,14.25043074]
[1766672710116,1.19582536,836.96,836.12,14.25043074]
[1766672710414,1.19582536,836.95,836.12,14.25043074]
[1766672710610,1.19582536,836.94,836.12,14.25043074]
[1766672710815,1.19582536,836.93,836.12,14.25043074]
[1766672711012,1.19582536,836.92,836.12,1.19317604]
[1766672711209,1.19582536,836.91,836.12,1.19317604]
[1766672711412,0.20795674,836.98,836.12,1.19317604]
[1766672711610,1.19582526,836.97,836.12,1.19317604]
[1766672711914,1.19582526,836.96,836.12,1.19317604]
[1766672712213,1.19582526,836.95,836.12,1.19317604]
[1766672712414,1.19582526,836.94,836.12,1.19317604]
[1766672712614,1.19582526,836.93,836.12,1.19317604]
[1766672712909,0.20795674,836.98,835.28,0.01526358]
[1766672712910,1.19582526,836.92,836.13,1.19317604]
[1766672713115,0.20795674,836.98,836.13,1.19317604]
[1766672713315,1.19581203,836.97,836.13,1.19317604]
[1766672713512,1.19581203,836.96,836.13,1.19317604]
[1766672713717,1.19581203,836.95,836.13,1.19317604]
[1766672713917,0.20795674,836.98,836.13,1.19317604]
[1766672713918,1.19581203,836.94,836.13,1.19317604]
[1766672714216,1.19581203,836.93,836.13,1.19317604]
[1766672714416,1.19581203,836.92,836.13,1.19317604]
[1766672714614,0.20795674,836.98,836.13,1.19317604]
[1766672714813,1.19581203,836.97,836.13,1.19317604]
[1766672715017,1.19581203,836.96,836.13,1.19317604]
[1766672715218,1.19581203,836.95,836.13,1.19317604]
[1766672715415,1.19581203,836.94,836.13,1.19317604]
[1766672715614,0.20795674,836.98,836.16,1.19317604]
[1766672715812,1.19576175,836.97,836.16,1.19317604]
[1766672716016,1.19576175,836.96,836.16,1.19317604]
[1766672716214,0.20795674,836.98,836.16,1.19317604]
[1766672716418,1.19576175,836.97,836.16,1.19317604]
[1766672716615,1.19576175,836.96,836.16,1.19317604]
[1766672716821,0.20795674,836.98,836.16,1.19317604]
[1766672717019,1.19576175,836.97,836.16,1.19317604]
[1766672717216,1.19576175,836.96,836.16,1.19317604]
[1766672717521,0.20795674,836.98,836.16,1.19317604]
[1766672717720,1.19576175,836.97,836.16,1.19317604]
[1766672717920,1.19576175,836.96,836.16,1.19317604]
[1766672718116,0.20795674,836.98,836.16,1.19317604]
[1766672718321,1.19576175,836.97,836.16,1.19317604]
[1766672718617,1.19576175,836.96,836.16,1.19317604]
[1766672718921,0.20795674,836.98,836.16,1.19317604]
[1766672719124,1.19576175,836.97,836.16,1.19317604]
[1766672719319,1.19576175,836.96,836.16,1.19317604]
[1766672719521,0.20795674,836.98,836.16,1.19317604]
[1766672719719,1.19576175,836.97,836.16,1.19317604]
[1766672719922,1.19576175,836.96,836.16,1.19317604]
[1766672720120,0.20795674,836.98,836.16,1.19317604]
[1766672720321,1.19576175,836.97,836.16,1.19317604]
[1766672720521,1.19576175,836.96,836.16,1.19317604]
[1766672720726,0.20795674,836.98,836.16,1.19317604]
[1766672721021,1.19576175,836.97,836.16,1.19317604]
[1766672721225,1.19576175,836.96,836.16,1.19317604]
[1766672721426,0.20795674,836.98,836.16,1.19317604]
[1766672721622,1.19576175,836.97,836.16,1.19317604]
[1766672721826,1.19576175,836.96,836.16,1.19317604]
[1766672722026,0.20795674,836.98,836.16,1.19317604]
[1766672722223,1.19576218,836.97,836.16,1.19317604]
[1766672722525,1.19576218,836.96,836.16,1.19317604]
[1766672722726,0.20795674,836.98,836.16,1.19317604]
[1766672722926,1.19576218,836.97,836.16,1.19317604]
[1766672723121,1.19576218,836.96,836.16,1.19317604]
[1766672723321,0.20795674,836.98,836.16,1.19317604]
[1766672723524,1.19576218,836.97,836.16,1.19317604]
[1766672723723,1.19576218,836.96,836.16,1.19317604]
[1766672723927,0.20795674,836.98,836.16,1.19317604]
[1766672724128,1.19576218,836.97,836.16,1.19317604]
[1766672724327,1.19576218,836.96,836.16,1.19317604]
[1766672724528,0.20795674,836.98,836.16,1.19317604]
[1766672724728,1.19576218,836.97,836.16,1.19317604]
[1766672724925,1.19576218,836.96,836.16,1.19317604]
[1766672725129,8.92601147,836.96,836.16,1.19317604]
[1766672727228,1.19576272,836.95,836.16,1.19317604]
[1766672727429,8.92601147,836.96,836.16,1.19317604]
[1766672727628,1.19576251,836.95,836.16,1.19317604]
[1766672727828,8.92601147,836.96,836.16,1.19317604]
[1766672728032,1.19576261,836.95,836.16,1.19317604]
[1766672728229,8.92601147,836.96,836.17,1.19317604]
[1766672728529,1.19576293,836.95,836.17,1.19317604]
[1766672728729,0.20795674,836.98,836.17,1.19317604]
[1766672728934,1.19576293,836.97,836.17,1.19317604]
[1766672729134,1.19576293,836.96,836.17,1.19317604]
[1766672729331,1.19576293,836.95,836.17,1.19317604]
[1766672729530,0.20795674,836.98,836.17,1.19317604]
[1766672729732,1.19576293,836.97,836.17,1.19317604]
[1766672729932,1.19576293,836.96,836.17,1.19317604]
[1766672730136,1.19576293,836.95,836.17,1.19317604]
[1766672730434,1.19576293,836.94,836.17,1.19317604]
[1766672730633,0.20795674,836.98,836.17,1.19317604]
[1766672730838,1.19576283,836.97,836.17,1.19317604]
[1766672731037,1.19576283,836.96,836.17,1.19317604]
[1766672731233,1.19576283,836.95,836.17,1.19317604]
[1766672731438,1.19576283,836.94,836.17,1.19317604]
[1766672731635,0.20795674,836.98,836.17,1.19317604]
[1766672731839,1.19576283,836.97,836.17,1.19317604]
[1766672732037,1.19576283,836.96,836.17,1.19317604]
[1766672732236,1.19576283,836.95,836.17,1.19317604]
[1766672732434,1.19576283,836.94,836.17,1.19317604]
[1766672732634,0.20795674,836.98,836.17,1.19317604]
[1766672732839,1.19576283,836.97,836.17,1.19317604]
[1766672733136,1.19576283,836.96,836.17,1.19317604]
[1766672733335,1.19576283,836.95,836.17,1.19317604]
[1766672733638,1.19576283,836.94,836.17,1.19317604]
[1766672733838,0.20795674,836.98,836.17,1.19317604]
[1766672734040,1.19576283,836.97,836.17,1.19317604]
[1766672734234,1.19576283,836.96,836.17,1.19317604]
[1766672734437,1.19576283,836.95,836.17,1.19317604]
[1766672734637,0.20795674,836.98,836.17,1.19317604]
[1766672734834,1.19576283,836.97,836.17,1.19317604]
[1766672735035,1.19576283,836.96,836.17,1.19317604]
[1766672735234,1.19576283,836.95,836.17,1.19317604]
[1766672735437,0.20795674,836.98,836.17,1.19317604]
[1766672735638,1.19576283,836.97,836.17,1.19317604]
[1766672735842,1.19576283,836.96,836.17,1.19317604]
[1766672736038,10.10036644,836.95,836.17,1.19317604]
[1766672736338,1.19576283,836.94,836.17,1.19317604]
[1766672736537,8.90460361,836.95,836.17,1.19317604]
[1766672736741,1.19576283,836.94,836.17,1.19317604]
[1766672736942,8.90460361,836.95,836.17,1.19317604]
[1766672737138,1.19576283,836.94,836.17,1.19317604]
[1766672737337,8.90460361,836.95,836.17,1.19317604]
[1766672737538,1.19576283,836.94,836.17,1.19317604]
[1766672737739,8.90460361,836.95,836.17,1.19317604]
[1766672737943,1.19576283,836.94,836.17,1.19317604]
[1766672738140,1.19580106,836.93,836.14,1.19317604]
[1766672738344,1.19580106,836.92,836.15,1.19317604]
[1766672738545,8.90460361,836.95,836.15,1.19317604]
[1766672738741,1.19580117,836.94,836.15,1.19317604]
[1766672738943,1.19580117,836.93,836.15,1.19317604]
[1766672739147,1.19580117,836.92,836.15,1.19317604]
[1766672739341,0.20795674,836.98,836.15,1.19317604]
[1766672739546,1.19580235,836.97,836.12,1.19317604]
[1766672739744,1.19580235,836.96,836.12,1.19317604]
[1766672740043,1.19580235,836.95,836.12,1.19317604]
[1766672740342,1.19580235,836.94,836.12,1.19317604]
[1766672740542,1.19580235,836.93,836.12,1.19317604]
[1766672740846,1.19580235,836.92,836.12,1.19317604]
[1766672741046,1.19580235,836.91,836.12,1.19317604]
[1766672741347,1.19580235,836.9,836.13,1.19317604]
[1766672741647,1.19580235,836.89,836.13,1.19317604]
[1766672741947,0.20795674,836.98,836.13,1.19317604]
[1766672742143,1.19583181,836.97,836.13,1.19317604]
[1766672742348,1.19583181,836.96,836.13,1.19317604]
[1766672742549,1.19583181,836.95,836.13,1.19317604]
[1766672742748,1.19583181,836.94,836.13,1.19317604]
[1766672743043,1.19583181,836.93,836.13,1.19317604]
[1766672743248,1.19583181,836.92,836.12,1.19317604]
[1766672743544,0.20795674,836.98,836.12,1.19317604]
[1766672743545,1.19583181,836.91,836.12,1.19317604]
[1766672743748,1.19583181,836.9,836.12,1.19317604]
[1766672744048,1.19583181,836.89,836.12,1.19317604]
[1766672744250,0.20795674,836.98,836.12,1.19317604]
[1766672744549,1.1958417,836.97,836.12,1.19317604]
[1766672744749,1.1958417,836.96,836.12,1.19317604]
[1766672744950,1.1958417,836.95,836.12,1.19317604]
[1766672745246,1.1958417,836.94,836.12,1.19317604]
[1766672745445,1.1958417,836.93,836.12,1.19317604]
[1766672745648,1.1958417,836.92,836.12,1.19317604]
[1766672745848,1.1958417,836.91,836.12,1.19317604]
[1766672746048,1.1958417,836.9,836.12,1.19317604]
[1766672746249,1.1958417,836.89,836.12,1.19317604]
[1766672746446,0.20795674,836.98,836.12,1.19317604]
[1766672746749,1.1958417,836.97,836.12,1.19317604]
[1766672746949,1.1958417,836.96,836.12,1.19317604]
[1766672747149,1.1958417,836.95,836.12,1.19317604]
[1766672747444,1.1958417,836.94,836.12,1.19317604]
[1766672747645,10.09290531,836.93,836.12,1.19317604]
[1766672747846,1.1958417,836.92,836.12,1.19317604]
[1766672748148,1.1958417,836.92,836.11,1.19317604]
[1766672751752,1.1958417,836.91,836.11,1.19317604]
[1766672751952,1.1958417,836.9,836.11,1.19317604]
[1766672752147,1.1958417,836.89,836.11,1.19317604]
[1766672752347,1.1958417,836.88,836.11,1.19317604]
[1766672752650,0.20795674,836.98,836.11,1.19317604]
[1766672752950,1.19585201,836.97,836.11,1.19317604]
[1766672753150,1.19585201,836.96,836.11,1.19317604]
[1766672753348,1.19585201,836.95,836.11,1.19317604]
[1766672753656,1.19585201,836.94,836.11,1.19317604]
[1766672753850,1.19585201,836.93,836.11,1.19317604]
[1766672754050,1.19585201,836.92,836.11,1.19317604]
[1766672754253,1.19585201,836.91,836.11,1.19317604]
[1766672754553,1.19585201,836.9,836.1,1.19317604]
[1766672754754,1.19585201,836.89,836.1,1.19317604]
[1766672755053,1.19585201,836.88,836.1,1.19317604]
[1766672755248,1.19585201,836.87,836.1,1.19317604]
[1766672755450,0.20795674,836.98,836.1,1.19317604]
[1766672755650,1.19586503,836.97,836.1,1.19317604]
[1766672755849,1.19586503,836.96,836.1,1.19317604]
[1766672756151,1.19586503,836.95,836.1,1.19317604]
[1766672756349,1.19586503,836.94,836.1,1.19317604]
[1766672756548,1.19586503,836.93,836.1,1.19317604]
[1766672756754,1.19586503,836.92,836.04,1.19317604]
[1766672756953,1.19586503,836.91,836.04,1.19317604]
[1766672757155,1.19586503,836.9,836.04,1.19317604]
[1766672757354,1.19586503,836.89,836.04,1.19317604]
[1766672757555,1.19586503,836.88,836.04,1.19317604]
[1766672757753,1.19586503,836.87,836.04,1.19317604]
[1766672757950,1.19586503,836.86,836.04,1.19317604]
[1766672758153,1.19586503,836.85,836.04,1.19317604]
[1766672758350,1.19586503,836.84,836.03,1.19317604]
[1766672758653,1.19586503,836.83,836.03,1.19317604]
[1766672758854,8.90037437,836.93,836.03,1.19317604]
[1766672759051,1.19594552,836.92,836.03,1.19317604]
[1766672759350,1.19594552,836.91,836.03,1.19317604]
[1766672759550,1.19594552,836.9,836.03,1.19317604]
[1766672759750,1.19594552,836.89,836.03,1.19317604]
[1766672759954,1.19594552,836.88,836.03,1.19317604]
[1766672760153,1.19594552,836.87,836.03,1.19317604]
[1766672760450,1.19594552,836.86,836.03,1.19317604]
[1766672760653,1.19594552,836.85,836.03,1.19317604]
[1766672760853,1.19594552,836.84,836.03,1.19317604]
[1766672761051,1.19594552,836.83,836.03,1.19317604]
[1766672761250,0.89666517,836.96,836.03,1.19317604]
[1766672761452,1.19594552,836.95,836.03,1.19317604]
[1766672761654,1.19594552,836.94,836.03,1.19317604]
[1766672761852,1.19594552,836.93,836.03,1.19317604]
[1766672762056,1.19594552,836.92,836.03,1.19317604]
[1766672762256,1.19594552,836.91,836.03,1.19317604]
[1766672762456,1.19594552,836.9,836.02,1.19317604]
[1766672762658,1.19594552,836.89,836.02,1.19317604]
[1766672762853,1.19594552,836.88,836.02,1.19317604]
[1766672763058,1.19594552,836.87,836.02,1.19317604]
[1766672763357,1.19594552,836.86,836.02,1.19317604]
[1766672763559,1.19594552,836.85,836.02,1.19317604]
[1766672763759,1.19594552,836.84,836.02,1.19317604]
[1766672763965,0.89666517,836.97,836.02,1.19317604]
[1766672764163,1.19594531,836.96,836.02,1.19317604]
[1766672764357,1.19594531,836.95,836.02,1.19317604]
[1766672764556,1.19594531,836.94,836.02,1.19317604]
[1766672764760,1.19594531,836.93,836.02,1.19317604]
[1766672764960,1.19594531,836.92,836.02,1.19317604]
[1766672765260,1.19594531,836.91,836.02,1.19317604]
[1766672765460,1.19594531,836.9,836.02,1.19317604]
[1766672765660,1.19594531,836.89,836.02,1.19317604]
[1766672765860,1.19594531,836.88,836.02,1.19317604]
[1766672766060,1.19594531,836.87,836.02,1.19317604]
[1766672766260,1.19594531,836.86,836.02,1.19317604]
[1766672766460,1.19594531,836.85,836.02,1.19317604]
[1766672766661,1.19594531,836.84,836.02,1.19317604]
[1766672766861,0.89666517,836.97,836.02,1.19317604]
[1766672767063,1.1959451,836.96,836.02,1.19317604]
[1766672767260,1.1959451,836.95,836.02,1.19317604]
[1766672767557,1.1959451,836.95,835.87,1.79182466]
[1766672767558,1.1959451,836.94,836.01,1.19317604]
[1766672767764,1.1959451,836.93,836.01,1.19317604]
[1766672768061,1.1959451,836.92,836.01,1.19317604]
[1766672768360,1.1959451,836.91,836.01,1.19317604]
[1766672768563,1.1959451,836.9,836.01,1.19317604]
[1766672768764,1.1959451,836.89,836.01,1.19317604]
[1766672768962,1.1959451,836.88,836.01,1.19317604]
[1766672769162,1.1959451,836.87,836.01,1.19317604]
[1766672769460,1.1959451,836.86,836.01,1.19317604]
[1766672769660,1.1959451,836.85,836.01,1.19317604]
[1766672769964,1.1959451,836.84,836.01,1.19317604]
[1766672770162,9.14956881,836.87,836.01,1.19317604]